fUSD/lending_fUSD_20250204
["ID","MTS","AMOUNT","RATE_DAILY","PERIOD"]
[351602025,1738656644034,-805.98,8.661e-05,2]
[351602026,1738656644044,-500.0,8.661e-05,2]
[351602027,1738656644054,-500.0,8.661e-05,2]
[351602028,1738656644064,-754.54,8.661e-05,2]
[351602029,1738656644074,-151.0,8.661e-05,2]
[351602030,1738656644084,-500.0,8.661e-05,2]
[351602031,1738656644095,-500.0,8.662e-05,2]
[351602032,1738656644105,-98433.11063632,8.663e-05,2]
[351602033,1738656644118,-69958.05490546,8.663e-05,2]
[351602034,1738656644129,-151.0,8.663e-05,2]
[351602035,1738656644139,-439.46,8.67e-05,2]
[351602037,1738656644151,-774.73,8.67e-05,2]
[351602065,1738656644429,-439.46,8.67e-05,2]
[351602068,1738656644441,-774.73,8.67e-05,2]
[351602070,1738656644451,-150.0,8.67e-05,2]
[351602072,1738656644460,-774.73,8.67e-05,2]
[351602073,1738656644475,-300.32,8.67e-05,2]
[351602076,1738656644485,-150.29,8.67e-05,2]
[351602077,1738656644495,-150.0,8.7e-05,2]
[351602080,1738656644505,-774.73,8.7e-05,2]
[351602081,1738656644515,-439.46,8.7e-05,2]
[351602084,1738656644525,-316.34,8.7e-05,2]
[351602086,1738656644536,-774.73,8.7e-05,2]
[351602088,1738656644546,-150.0,8.7e-05,2]
[351602090,1738656644555,-300.0,8.7e-05,2]
[351602092,1738656644564,-1200.0,8.7e-05,3]
[351602093,1738656644574,-220.12,8.76e-05,2]
[351602096,1738656644584,-500.0,8.767e-05,2]
[351602098,1738656644593,-431.43955898,8.777e-05,2]
[351602100,1738656644604,-3085.26765716,8.79e-05,2]
[351602102,1738656644613,-972.23,8.795e-05,2]
[351602104,1738656644623,-2965.34,8.795e-05,2]
[351602106,1738656644633,-1443.5,8.795e-05,2]
[351602107,1738656644643,-1425.14,8.795e-05,2]
[351602110,1738656644652,-1602.61,8.795e-05,2]
[351602112,1738656644662,-1034.85,8.795e-05,2]
[351602114,1738656644672,-1713.88,8.795e-05,2]
[351602115,1738656644682,-1644.34,8.795e-05,2]
[351602117,1738656644692,-731.78,8.795e-05,2]
[351602119,1738656644701,-500.0,8.795e-05,2]
[351602122,1738656644711,-1968.22,8.795e-05,2]
[351602124,1738656644724,-1377.42,8.795e-05,2]
[351602126,1738656644734,-2445.42,8.795e-05,2]
[351602128,1738656644743,-1035.38,8.795e-05,2]
[351602130,1738656644754,-2216.58,8.795e-05,2]
[351602132,1738656644767,-1849.01,8.795e-05,2]
[351602134,1738656644777,-598.82,8.795e-05,2]
[351602136,1738656644787,-1736.07,8.795e-05,2]
[351602138,1738656644797,-1801.32,8.795e-05,2]
[351602140,1738656644807,-500.0,8.795e-05,2]
[351602142,1738656644817,-1652.58,8.795e-05,2]
[351602144,1738656644826,-656.85,8.795e-05,2]
[351602146,1738656644837,-1904.72,8.795e-05,2]
[351602148,1738656644847,-500.0,8.795e-05,2]
[351602150,1738656644857,-1050.72,8.795e-05,2]
[351602152,1738656644867,-1290.63,8.795e-05,2]
[351602154,1738656644877,-799.83,8.795e-05,2]
[351602156,1738656644887,-1414.3,8.795e-05,2]
[351602158,1738656644897,-500.0,8.795e-05,2]
[351602160,1738656644908,-563.87,8.795e-05,2]
[351602162,1738656644919,-1214.75,8.795e-05,2]
[351602164,1738656644929,-967.98,8.795e-05,2]
[351602166,1738656644938,-500.0,8.795e-05,2]
[351602168,1738656644948,-803.23,8.795e-05,2]
[351602171,1738656644959,-1146.578297,8.796e-05,2]
[351602173,1738656644971,-1164.302759,8.796e-05,2]
[351602175,1738656644981,-500.0,8.796e-05,2]
[351602177,1738656644991,-593.37,8.796e-05,2]
[351602179,1738656645001,-500.0,8.796e-05,2]
[351602181,1738656645011,-1137.87,8.796e-05,2]
[351602183,1738656645022,-500.0,8.796e-05,2]
[351602185,1738656645031,-500.0,8.796e-05,2]
[351602187,1738656645041,-1153.19,8.796e-05,2]
[351602189,1738656645051,-500.0,8.796e-05,2]
[351602191,1738656645060,-500.0,8.796e-05,2]
[351602193,1738656645070,-500.0,8.796e-05,2]
[351602195,1738656645080,-500.0,8.796e-05,2]
[351602196,1738656645091,-500.0,8.796e-05,2]
[351602199,1738656645100,-500.0,8.796e-05,2]
[351602201,1738656645110,-742.66,8.796e-05,2]
[351602202,1738656645119,-500.0,8.796e-05,2]
[351602205,1738656645129,-500.0,8.796e-05,2]
[351602207,1738656645139,-500.0,8.796e-05,2]
[351602209,1738656645148,-500.0,8.796e-05,2]
[351602211,1738656645158,-500.0,8.796e-05,2]
[351602213,1738656645167,-990.62,8.796e-05,2]
[351602215,1738656645177,-641.8,8.796e-05,2]
[351602217,1738656645186,-500.0,8.796e-05,2]
[351602219,1738656645195,-1113.87,8.796e-05,2]
[351602221,1738656645205,-500.0,8.796e-05,2]
[351602222,1738656645217,-575.0,8.796e-05,2]
[351602224,1738656645226,-1078.89,8.796e-05,2]
[351602227,1738656645236,-624.43,8.796e-05,2]
[351602229,1738656645246,-542.16,8.796e-05,2]
[351602231,1738656645255,-1046.85,8.796e-05,2]
[351602233,1738656645265,-642.81,8.796e-05,2]
[351602235,1738656645275,-731.1,8.796e-05,2]
[351602237,1738656645285,-500.0,8.796e-05,2]
[351602239,1738656645294,-970.33,8.796e-05,2]
[351602241,1738656645303,-881.41,8.796e-05,2]
[351602243,1738656645313,-500.0,8.796e-05,2]
[351602245,1738656645323,-760.89,8.796e-05,2]
[351602247,1738656645332,-500.0,8.796e-05,2]
[351602249,1738656645341,-500.0,8.796e-05,2]
[351602251,1738656645350,-500.0,8.796e-05,2]
[351602253,1738656645359,-500.0,8.796e-05,2]
[351602255,1738656645369,-504.7848032,8.796e-05,2]
[351602257,1738656645378,-500.0,8.796e-05,2]
[351602259,1738656645387,-500.0,8.796e-05,2]
[351602261,1738656645396,-547.77,8.796e-05,2]
[351602263,1738656645405,-150.45781026,8.796e-05,2]
[351602267,1738656645437,-349.54218974,8.796e-05,2]
[351602269,1738656645446,-438.76533026,8.796e-05,2]
[351602271,1738656645457,-267.49621999,8.796e-05,2]
[351602273,1738656645470,-358.51844975,8.796e-05,2]
[351602275,1738656645479,-500.0,8.796e-05,2]
[351602277,1738656645488,-364.14651976,8.796e-05,2]
[351602280,1738656645502,-135.85348024,8.796e-05,2]
[351602282,1738656645511,-354.56948076,8.796e-05,2]
[351602294,1738656645626,-145.43051924,8.796e-05,2]
[351602296,1738656645635,-428.18947876,8.796e-05,2]
[351602299,1738656645647,-71.81052124,8.796e-05,2]
[351602301,1738656645656,-314.0022388,8.796e-05,2]
[351602409,1738656646676,-876.17,8.659e-05,2]
[351602411,1738656646687,-500.0,8.66e-05,2]
[351602413,1738656646699,-584.7077612,8.796e-05,2]
[351602414,1738656646710,-166.622239,8.796e-05,2]
[351602415,1738656646740,-333.377761,8.796e-05,2]
[351602416,1738656646751,-608.15981611,8.796e-05,2]
[351602417,1738656646764,-500.0,8.796e-05,2]
[351602418,1738656646774,-198.54967963,8.796e-05,2]
[351602419,1738656646795,-301.45032037,8.796e-05,2]
[351602420,1738656646805,-758.78,8.796e-05,2]
[351602428,1738656646876,-500.0,8.796e-05,2]
[351602430,1738656646886,-500.0,8.796e-05,2]
[351602432,1738656646896,-500.0,8.796e-05,2]
[351602434,1738656646906,-698.6,8.796e-05,2]
[351602436,1738656646916,-500.0,8.796e-05,2]
[351602438,1738656646925,-1019.86,8.796e-05,2]
[351602440,1738656646934,-500.0,8.796e-05,2]
[351602442,1738656646943,-500.0,8.796e-05,2]
[351602444,1738656646953,-1073.34,8.796e-05,2]
[351602446,1738656646962,-500.0,8.796e-05,2]
[351602448,1738656646976,-508.62,8.796e-05,2]
[351602450,1738656646985,-500.0,8.796e-05,2]
[351602452,1738656646995,-500.0,8.796e-05,2]
[351602454,1738656647006,-500.0,8.796e-05,2]
[351602456,1738656647015,-500.0,8.796e-05,2]
[351602458,1738656647024,-330.4543114,8.796e-05,2]
[351602460,1738656647034,-500.0,8.796e-05,2]
[351602462,1738656647043,-500.0,8.796e-05,2]
[351602464,1738656647052,-500.0,8.796e-05,2]
[351602466,1738656647063,-500.0,8.796e-05,2]
[351602467,1738656647072,-500.0,8.796e-05,2]
[351602469,1738656647081,-500.0,8.796e-05,2]
[351602471,1738656647091,-500.0,8.796e-05,2]
[351602473,1738656647104,-500.0,8.796e-05,2]
[351602476,1738656647117,-500.0,8.796e-05,2]
[351602477,1738656647128,-613.38,8.796e-05,2]
[351602479,1738656647137,-500.0,8.796e-05,2]
[351602481,1738656647147,-500.0,8.796e-05,2]
[351602483,1738656647156,-500.0,8.796e-05,2]
[351602486,1738656647166,-500.0,8.796e-05,2]
[351602487,1738656647176,-500.0,8.796e-05,2]
[351602490,1738656647186,-570.43,8.796e-05,2]
[351602492,1738656647195,-500.0,8.796e-05,2]
[351602493,1738656647204,-500.0,8.796e-05,2]
[351602494,1738656647218,-905.18,8.796e-05,2]
[351602495,1738656647228,-1074.9,8.796e-05,2]
[351602496,1738656647239,-500.0,8.796e-05,2]
[351602497,1738656647249,-500.0,8.796e-05,2]
[351602498,1738656647259,-834.12,8.796e-05,2]
[351602499,1738656647268,-500.0,8.796e-05,2]
[351602500,1738656647277,-500.0,8.796e-05,2]
[351602501,1738656647286,-868.86,8.796e-05,2]
[351602502,1738656647297,-981.71,8.796e-05,2]
[351602503,1738656647306,-500.0,8.796e-05,2]
[351602504,1738656647315,-500.0,8.796e-05,2]
[351602506,1738656647324,-500.0,8.796e-05,2]
[351602508,1738656647334,-619.91,8.796e-05,2]
[351602510,1738656647343,-251.44402978,8.796e-05,2]
[351602512,1738656647352,-1073.4,8.796e-05,2]
[351602514,1738656647362,-500.0,8.796e-05,2]
[351602516,1738656647371,-537.36848648,8.796e-05,2]
[351602518,1738656647380,-500.0,8.796e-05,2]
[351602520,1738656647391,-500.0,8.796e-05,2]
[351602522,1738656647402,-500.0,8.796e-05,2]
[351602524,1738656647412,-500.0,8.796e-05,2]
[351602526,1738656647423,-500.0,8.796e-05,2]
[351602528,1738656647432,-500.0,8.796e-05,2]
[351602530,1738656647442,-845.3,8.796e-05,2]
[351602532,1738656647456,-1290.77,8.796e-05,2]
[351602533,1738656647469,-500.0,8.796e-05,2]
[351602534,1738656647479,-831.36,8.796e-05,2]
[351602535,1738656647489,-519.75,8.796e-05,2]
[351602536,1738656647499,-1157.57,8.796e-05,2]
[351602537,1738656647508,-515.9,8.796e-05,2]
[351602538,1738656647518,-519.85,8.796e-05,2]
[351602539,1738656647527,-500.0,8.796e-05,2]
[351602540,1738656647536,-500.0,8.796e-05,2]
[351602541,1738656647546,-1132.16,8.796e-05,2]
[351602542,1738656647555,-500.0,8.796e-05,2]
[351602543,1738656647565,-1453.23,8.796e-05,2]
[351602544,1738656647574,-500.0,8.796e-05,2]
[351602545,1738656647585,-1330.91,8.796e-05,2]
[351602546,1738656647594,-500.0,8.796e-05,2]
[351602547,1738656647603,-500.0,8.796e-05,2]
[351602548,1738656647612,-695.17,8.796e-05,2]
[351602549,1738656647622,-1815.68285198,8.796e-05,2]
[351602550,1738656647683,-138.03714802,8.796e-05,2]
[351602551,1738656647692,-500.0,8.796e-05,2]
[351602552,1738656647701,-500.0,8.796e-05,2]
[351602553,1738656647712,-505.26572521,8.796e-05,2]
[351602554,1738656647723,-322.29712677,8.796e-05,2]
[351602555,1738656647735,-177.70287323,8.796e-05,2]
[351602556,1738656647745,-120.65912677,8.796e-05,2]
[351602630,1738656648690,-685.54087323,8.796e-05,2]
[351602632,1738656648701,-500.0,8.796e-05,2]
[351602635,1738656648710,-333.03604953,8.796e-05,2]
[351602637,1738656648723,-175.14395047,8.796e-05,2]
[351602639,1738656648734,-210.18312133,8.796e-05,2]
[351602641,1738656648748,-289.81687867,8.796e-05,2]
[351602643,1738656648758,-894.58409935,8.796e-05,2]
[351602648,1738656648808,-274.54751638,8.796e-05,2]
[351602659,1738656648911,-64.42838427,8.796e-05,2]
[351602661,1738656648921,-500.0,8.796e-05,2]
[351602663,1738656648931,-500.0,8.796e-05,2]
[351602665,1738656648940,-500.0,8.796e-05,2]
[351602667,1738656648949,-1391.68,8.796e-05,2]
[351602669,1738656648958,-501.29876303,8.796e-05,2]
[351602671,1738656648969,-588.96,8.796e-05,2]
[351602672,1738656648978,-500.0,8.796e-05,2]
[351602674,1738656648988,-989.15,8.796e-05,2]
[351602676,1738656648998,-500.0,8.796e-05,2]
[351602678,1738656649008,-983.98,8.796e-05,2]
[351602679,1738656649018,-131.7528527,8.796e-05,2]
[351602680,1738656649074,-368.2471473,8.796e-05,2]
[351602681,1738656649084,-1011.10351621,8.796e-05,2]
[351602682,1738656667407,162.18,7.956e-05,2]
[351602685,1738656990813,150.0,0.00018818,120]
[351602687,1738657247476,11753.06,7.83e-05,2]
[351602688,1738657268906,9657.31940192,8e-05,2]
[351602690,1738657454220,-160.0,0.00012,30]
[351602691,1738657470713,-1000.0,9.9e-05,10]
[351602692,1738657470812,-152.0,0.00010332,10]
[351602693,1738657470863,-152.0,0.00010511,11]
[351602694,1738657470914,-152.0,0.0001069,12]
[351602695,1738657470985,-152.0,0.00010869,13]
[351602696,1738657471047,-152.0,0.00011048,14]
[351602697,1738657471096,-152.0,0.00011228,15]
[351602698,1738657471161,-152.0,0.00011407,16]
[351602699,1738657471189,-155.676251,0.0001152,18]
[351602700,1738657471232,-152.0,0.00011586,17]
[351602701,1738657471276,-152.0,0.00011765,18]
[351602702,1738657471322,-152.0,0.00011944,19]
[351602703,1738657471354,-89164.323749,0.00012,18]
[351602704,1738657590836,150.0,0.00018814,120]
[351602706,1738657636591,165.09,7.851e-05,2]
[351602708,1738657649137,-814.887844,8.178e-05,2]
[351602709,1738657649160,-250.0,8.219e-05,2]
[351602710,1738657649182,-508.77,8.219e-05,2]
[351602711,1738657649203,-167.18,8.219e-05,2]
[351602712,1738657649224,-1000.0,8.219e-05,2]
[351602713,1738657649245,-1813.12,8.219e-05,2]
[351602714,1738657649266,-1000.0,8.22e-05,2]
[351602715,1738657649288,-1954.08835411,8.22e-05,2]
[351602718,1738657743010,270.64585419,0.000189,120]
[351602732,1738657832309,-250.0,8.219e-05,2]
[351602733,1738657832318,-845.91164589,8.22e-05,2]
[351602734,1738657832328,-900.0,8.22e-05,2]
[351602735,1738657832338,-500.0,8.438e-05,2]
[351602736,1738657832347,-287.909,8.558e-05,2]
[351602737,1738657832357,-500.0,8.6e-05,3]
[351602738,1738657832366,-2835.2699462,8.62e-05,2]
[351602739,1738657832375,-150.0,8.656e-05,2]
[351602740,1738657832385,-595.7,8.657e-05,2]
[351602741,1738657832395,-680.77,8.657e-05,2]
[351602742,1738657832404,-500.0,8.657e-05,2]
[351602743,1738657832414,-588.32,8.657e-05,2]
[351602744,1738657832424,-326.32298321,8.657e-05,2]
[351602745,1738657832437,-694.72701679,8.657e-05,2]
[351602746,1738657832446,-481.99813633,8.657e-05,2]
[351602747,1738657832476,-506.98186367,8.657e-05,2]
[351602748,1738657832485,-959.62,8.657e-05,2]
[351602749,1738657832494,-889.47,8.657e-05,2]
[351602750,1738657832504,-581.23,8.657e-05,2]
[351602751,1738657832513,-500.0,8.657e-05,2]
[351602752,1738657832522,-976.05,8.657e-05,2]
[351602753,1738657832532,-187.45707043,8.657e-05,2]
[351602754,1738657832541,-823.81,8.657e-05,2]
[351602755,1738657832551,-500.0,8.657e-05,2]
[351602756,1738657832560,-500.0,8.657e-05,2]
[351602757,1738657832569,-1051.030106,8.657e-05,2]
[351602758,1738657832578,-157.057323,8.657e-05,2]
[351602759,1738657832588,-500.0,8.657e-05,2]
[351602760,1738657832598,-500.0,8.657e-05,2]
[351602761,1738657832607,-500.0,8.657e-05,2]
[351602762,1738657832617,-562.26,8.657e-05,2]
[351602763,1738657832626,-230.5291369,8.657e-05,2]
[351602765,1738657832664,-836.7483931,8.657e-05,2]
[351602767,1738657832673,-500.0,8.657e-05,2]
[351602768,1738657832682,-162.04110418,8.657e-05,2]
[351602771,1738657832694,-667.70889582,8.657e-05,2]
[351602773,1738657832704,-386.58784405,8.657e-05,2]
[351602775,1738657832715,-128.41417726,8.657e-05,2]
[351602778,1738657832735,-396.52582274,8.657e-05,2]
[351602780,1738657832744,-290.15443101,8.657e-05,2]
[351602782,1738657832755,-209.84556899,8.657e-05,2]
[351602784,1738657832764,-983.95,8.657e-05,2]
[351602786,1738657832773,-500.0,8.657e-05,2]
[351602788,1738657832781,-774.85,8.657e-05,2]
[351602790,1738657832789,-1061.11,8.657e-05,2]
[351602792,1738657832798,-500.0,8.657e-05,2]
[351602794,1738657832806,-1199.55,8.657e-05,2]
[351602796,1738657832814,-200.50162065,8.657e-05,2]
[351602798,1738657832823,-739.02,8.657e-05,2]
[351602800,1738657832831,-500.0,8.657e-05,2]
[351602802,1738657832839,-71.23390309,8.657e-05,2]
[351602808,1738657832883,-468.64609691,8.657e-05,2]
[351602810,1738657832892,-500.0,8.657e-05,2]
[351602812,1738657832901,-58.08415283,8.657e-05,2]
[351602936,1738657838307,-735.15365519,8.657e-05,2]
[351602937,1738657838364,-293.86219198,8.657e-05,2]
[351602938,1738657838373,-254.49043836,8.657e-05,2]
[351602950,1738657838625,-647.48956164,8.657e-05,2]
[351602952,1738657838635,-1296.45,8.657e-05,2]
[351602954,1738657838644,-500.0,8.657e-05,2]
[351602956,1738657838654,-887.31,8.657e-05,2]
[351602958,1738657838663,-266.1920624,8.657e-05,2]
[351603101,1738657840206,-238.8379376,8.657e-05,2]
[351603103,1738657840219,-289.90381448,8.657e-05,2]
[351603104,1738657840232,-1992.92618552,8.657e-05,2]
[351603106,1738657840244,-736.3,8.657e-05,2]
[351603108,1738657840254,-1373.95,8.657e-05,2]
[351603110,1738657840263,-1790.91,8.657e-05,2]
[351603112,1738657840273,-1677.29,8.657e-05,2]
[351603114,1738657840283,-1164.65,8.657e-05,2]
[351603116,1738657840292,-500.0,8.657e-05,2]
[351603118,1738657840301,-1986.18,8.657e-05,2]
[351603120,1738657840310,-500.0,8.657e-05,2]
[351603122,1738657840320,-503.96,8.657e-05,2]
[351603124,1738657840330,-1032.6,8.657e-05,2]
[351603126,1738657840339,-1535.05,8.657e-05,2]
[351603128,1738657840348,-1349.84,8.657e-05,2]
[351603130,1738657840356,-1041.41,8.657e-05,2]
[351603132,1738657840365,-1275.71,8.657e-05,2]
[351603134,1738657840374,-971.09,8.657e-05,2]
[351603136,1738657840383,-1855.75,8.657e-05,2]
[351603138,1738657840393,-663.86,8.657e-05,2]
[351603140,1738657840402,-906.72,8.657e-05,2]
[351603142,1738657840412,-500.0,8.657e-05,2]
[351603144,1738657840421,-1232.6,8.657e-05,2]
[351603146,1738657840431,-1323.81,8.657e-05,2]
[351603148,1738657840440,-2043.3,8.657e-05,2]
[351603150,1738657840449,-1275.66,8.657e-05,2]
[351603152,1738657840459,-1403.66,8.657e-05,2]
[351603154,1738657840471,-590.54,8.657e-05,2]
[351603156,1738657840480,-2051.61,8.657e-05,2]
[351603158,1738657840491,-805.31,8.657e-05,2]
[351603160,1738657840501,-644.46,8.657e-05,2]
[351603162,1738657840511,-2410.7,8.657e-05,2]
[351603164,1738657840521,-891.21,8.657e-05,2]
[351603166,1738657840531,-4799.96,8.657e-05,2]
[351603168,1738657840540,-3183.66,8.657e-05,2]
[351603170,1738657840550,-2718.23,8.657e-05,2]
[351603172,1738657840559,-1096.05,8.657e-05,2]
[351603174,1738657840569,-1093.15,8.657e-05,2]
[351603176,1738657840578,-583.42,8.657e-05,2]
[351603178,1738657840587,-1955.25,8.657e-05,2]
[351603180,1738657840597,-1082.25,8.657e-05,2]
[351603182,1738657840606,-631.3,8.657e-05,2]
[351603184,1738657840623,-500.0,8.657e-05,2]
[351603186,1738657840632,-1932.83,8.657e-05,2]
[351603188,1738657840641,-1469.06,8.657e-05,2]
[351603190,1738657840650,-1276.27,8.657e-05,2]
[351603193,1738657840660,-1323.21,8.657e-05,2]
[351603195,1738657840670,-1579.7,8.657e-05,2]
[351603197,1738657840679,-844.03,8.657e-05,2]
[351603199,1738657840689,-1571.05,8.657e-05,2]
[351603200,1738657840698,-1306.38,8.657e-05,2]
[351603202,1738657840707,-1291.22,8.657e-05,2]
[351603204,1738657840717,-1762.88,8.657e-05,2]
[351603206,1738657840726,-670.8,8.657e-05,2]
[351603208,1738657840735,-1837.85,8.657e-05,2]
[351603210,1738657840745,-993.61,8.657e-05,2]
[351603212,1738657840755,-1804.2,8.657e-05,2]
[351603214,1738657840764,-1137.5,8.657e-05,2]
[351603216,1738657840774,-1664.36,8.657e-05,2]
[351603218,1738657840783,-2247.09,8.657e-05,2]
[351603220,1738657840792,-1433.8,8.657e-05,2]
[351603222,1738657840802,-3450.63,8.657e-05,2]
[351603224,1738657840810,-500.0,8.657e-05,2]
[351603226,1738657840820,-2099.68,8.657e-05,2]
[351603228,1738657840829,-3033.94,8.657e-05,2]
[351603230,1738657840838,-893.9,8.657e-05,2]
[351603232,1738657840847,-500.0,8.657e-05,2]
[351603234,1738657840856,-1751.86,8.657e-05,2]
[351603236,1738657840865,-3861.75,8.657e-05,2]
[351603238,1738657840875,-1262.63,8.657e-05,2]
[351603240,1738657840884,-533.18,8.657e-05,2]
[351603242,1738657840893,-1688.46,8.657e-05,2]
[351603244,1738657840902,-2252.66,8.657e-05,2]
[351603246,1738657840911,-500.0,8.657e-05,2]
[351603248,1738657840920,-500.0,8.657e-05,2]
[351603250,1738657840930,-500.0,8.657e-05,2]
[351603252,1738657840938,-949.1,8.657e-05,2]
[351603254,1738657840947,-3140.61,8.657e-05,2]
[351603256,1738657840956,-500.0,8.657e-05,2]
[351603258,1738657840967,-2031.86,8.657e-05,2]
[351603260,1738657840976,-1922.23,8.657e-05,2]
[351603262,1738657840986,-650.8,8.657e-05,2]
[351603264,1738657840995,-507.76482955,8.657e-05,2]
[351603266,1738657841006,-1773.62,8.657e-05,2]
[351603268,1738657841015,-1514.87,8.657e-05,2]
[351603270,1738657841025,-1694.93,8.657e-05,2]
[351603272,1738657841034,-500.0,8.657e-05,2]
[351603274,1738657841043,-500.0,8.657e-05,2]
[351603276,1738657841052,-2695.61,8.657e-05,2]
[351603278,1738657841061,-1605.7,8.657e-05,2]
[351603280,1738657841070,-963.16,8.657e-05,2]
[351603308,1738657841349,-1591.4,8.657e-05,2]
[351603310,1738657841359,-519.33,8.657e-05,2]
[351603312,1738657841369,-500.0,8.657e-05,2]
[351603314,1738657841378,-2911.93,8.657e-05,2]
[351603316,1738657841388,-1301.75,8.657e-05,2]
[351603318,1738657841397,-500.0,8.657e-05,2]
[351603320,1738657841406,-602.12,8.657e-05,2]
[351603322,1738657841415,-500.0,8.657e-05,2]
[351603324,1738657841425,-1651.21,8.657e-05,2]
[351603326,1738657841434,-1113.52,8.657e-05,2]
[351603328,1738657841444,-500.0,8.657e-05,2]
[351603330,1738657841454,-753.63,8.657e-05,2]
[351603332,1738657841464,-1043.05,8.657e-05,2]
[351603334,1738657841474,-500.0,8.657e-05,2]
[351603336,1738657841484,-1183.08,8.657e-05,2]
[351603338,1738657841493,-1412.08,8.657e-05,2]
[351603340,1738657841502,-2209.63,8.657e-05,2]
[351603342,1738657841511,-500.0,8.657e-05,2]
[351603344,1738657841521,-897.52,8.657e-05,2]
[351603346,1738657841530,-543.92,8.657e-05,2]
[351603348,1738657841540,-1080.76,8.657e-05,2]
[351603350,1738657841549,-1746.0,8.657e-05,2]
[351603352,1738657841559,-1522.13,8.657e-05,2]
[351603354,1738657841568,-2057.39,8.657e-05,2]
[351603356,1738657841577,-500.0,8.657e-05,2]
[351603357,1738657841587,-1409.28,8.657e-05,2]
[351603359,1738657841596,-500.0,8.657e-05,2]
[351603362,1738657841607,-1346.54,8.657e-05,2]
[351603363,1738657841617,-1057.09,8.657e-05,2]
[351603365,1738657841627,-500.0,8.658e-05,2]
[351603367,1738657841637,-500.0,8.658e-05,2]
[351603369,1738657841647,-500.0,8.658e-05,2]
[351603371,1738657841656,-908.07,8.658e-05,2]
[351603373,1738657841666,-500.0,8.658e-05,2]
[351603375,1738657841676,-500.0,8.658e-05,2]
[351603378,1738657841686,-500.0,8.658e-05,2]
[351603380,1738657841696,-500.0,8.658e-05,2]
[351603382,1738657841705,-527.09,8.658e-05,2]
[351603384,1738657841718,-500.0,8.658e-05,2]
[351603385,1738657841728,-500.0,8.658e-05,2]
[351603387,1738657841739,-500.0,8.658e-05,2]
[351603389,1738657841749,-500.0,8.658e-05,2]
[351603392,1738657841758,-500.0,8.658e-05,2]
[351603394,1738657841767,-500.0,8.658e-05,2]
[351603396,1738657841778,-500.0,8.658e-05,2]
[351603398,1738657841787,-500.0,8.658e-05,2]
[351603400,1738657841798,-500.0,8.658e-05,2]
[351603402,1738657841807,-500.0,8.658e-05,2]
[351603403,1738657841816,-500.0,8.658e-05,2]
[351603405,1738657841826,-500.0,8.658e-05,2]
[351603407,1738657841835,-500.0,8.658e-05,2]
[351603410,1738657841844,-500.0,8.658e-05,2]
[351603412,1738657841854,-1239.22,8.658e-05,2]
[351603413,1738657841863,-500.0,8.658e-05,2]
[351603416,1738657841873,-500.0,8.658e-05,2]
[351603418,1738657841883,-500.0,8.658e-05,2]
[351603420,1738657841893,-500.0,8.658e-05,2]
[351603422,1738657841902,-500.0,8.658e-05,2]
[351603423,1738657841912,-500.0,8.658e-05,2]
[351603426,1738657841921,-500.0,8.658e-05,2]
[351603428,1738657841931,-500.0,8.658e-05,2]
[351603430,1738657841941,-500.0,8.658e-05,2]
[351603431,1738657841951,-500.0,8.658e-05,2]
[351603433,1738657841961,-500.0,8.658e-05,2]
[351603435,1738657841972,-500.0,8.658e-05,2]
[351603438,1738657841981,-500.0,8.658e-05,2]
[351603439,1738657841991,-500.0,8.658e-05,2]
[351603442,1738657842001,-764.61,8.658e-05,2]
[351603444,1738657842011,-500.0,8.658e-05,2]
[351603445,1738657842020,-500.0,8.658e-05,2]
[351603448,1738657842029,-500.0,8.658e-05,2]
[351603449,1738657842039,-500.0,8.658e-05,2]
[351603451,1738657842049,-500.0,8.658e-05,2]
[351603453,1738657842058,-500.0,8.658e-05,2]
[351603455,1738657842067,-500.0,8.658e-05,2]
[351603457,1738657842077,-500.0,8.658e-05,2]
[351603459,1738657842086,-500.0,8.658e-05,2]
[351603461,1738657842095,-575.19,8.658e-05,2]
[351603463,1738657842104,-500.0,8.658e-05,2]
[351603465,1738657842114,-500.0,8.658e-05,2]